Cogmind - Beta 13 @@@ ROGUE MODE // 2024.06.04 @ 21:34:58 Player: Comet Result: Destroyed by G-50 Soldier with Heavy Laser Performance ------------- Evolutions (5) 2500 Regions Visited (20) 4000 Robots Destroyed (215) 1075 Value Destroyed (8210) 8210 Prototype IDs (20) 400 Alien Tech Used (0) 0 Bonus (4040) 4040 TOTAL SCORE: 20225 Bonus ------- High Alert Combat Kills 90 Follower Combat Kills 2182 Network Hubs Disabled 200 Met Zhirov 300 Met Warlord at Base 500 MAIN.C Attacked Warlord 500 Warlord Defense Kills 1570 Read Decrypted Archives 300 Friendly Fire -1602 Cogmind --------- Core Integrity 0/1000 Matter 300/300 Energy 100/100 System Corruption 7% Temperature Cool (26) Movement Core (50) Location -5/Warlord Parts ------- > --- POWER (2) -------- (None) > --- PROPULSION (4) --- (None) > --- UTILITY (7) ------ (None) > --- WEAPON (4) ------- (None) > --- INVENTORY (5) ---- Advanced Heat Sink Large Storage Unit Compact Battery (200) Improved Signal Interpreter Improved Medium Armor Plating Peak State ------------ > --- POWER ------------ Compact Particle Reactor Quantum Reactor > --- PROPULSION ------- Centrium Heavy Treads Centrium Heavy Treads > --- UTILITY ---------- Advanced Heat Sink Advanced Heat Sink High-capacity Storage Unit Advanced Sensor Array Improved Signal Interpreter Improved Utility Shielding Centrium Medium Armor Plating > --- WEAPON ----------- Wave Gun Ion Burst Cannon KE Penetrator Advanced Micro-nuke Launcher > --- INVENTORY -------- Light Fission Core Light Fission Core Micro Fission Core Advanced Power Amplifier Huge Storage Unit Energy Well Energy Well Improved Sensor Array Precision Energy Filter Particle Charger Hardened Medium Armor Plating Centrium Medium Armor Plating Medium Reflective Plating Hacking Suite High-powered Shock Rifle High-powered Shock Rifle Improved Arc Projector Advanced Variable Charge Gun Power Sword Phasing Sabre [Rating: 122] Favorites ----------- Power Light Nuclear Core Engine Cooled Ion Engine Power Core Light Nuclear Core Reactor Quantum Reactor Propulsion Compact Wheel Treads Light Treads Leg Myomer Leg Wheel Compact Wheel Hover Unit Backup Propulsion III Utility High-capacity Storage Unit Device Advanced Heat Sink Storage High-capacity Storage Unit Processor Improved Signal Interpreter Hackware Hacking Suite Protection Improved Medium Armor Plating Weapon Improved EM Shotgun Energy Gun Improved EM Shotgun Energy Cannon Nova Cannon Ballistic Gun Assault Rifle Ballistic Cannon Light Cannon Launcher Advanced Micro-nuke Launcher Impact Weapon Heavy Flail Slashing Weapon Phasing Sabre Build | -11 -10 -10 -9 -8 -7 -7 -7 -7 -7 -6 -6 -6 -6 -6 -5 -5 -5 -5 -5 -5 ------- Run | Yrd Mat Min Mat Mat Fac Was Fac Low Low Fac Ext Cet Arc Hub Fac Was Fac Upp Upp War Slots Evolved 10 | . . . 2 2 2 . . . . 2 . . . . 2 . . . . . Power 1 | . . . . . . . . . . . . . . . 1 . . . . . Propulsion 2 | . . . . 1 . . . . . 1 . . . . . . . . . . Utility 5 | . . . . 1 2 . . . . 1 . . . . 1 . . . . . Weapon 2 | . . . 2 . . . . . . . . . . . . . . . . . Parts Attached 282 | 6 7 1 29 16 7 6 7 18 . 32 49 8 1 4 18 23 19 12 1 18 Power 22 | 1 . . 4 1 . 1 1 . . 2 3 2 . . 1 3 1 . . 2 Engine 8 | 1 . . 3 . . . 1 . . 1 2 . . . . . . . . . Core 8 | . . . 1 1 . 1 . . . 1 1 . . . . 1 1 . . 1 Reactor 6 | . . . . . . . . . . . . 2 . . 1 2 . . . 1 Propulsion 54 | 2 1 . 6 4 3 . 1 4 . 4 14 2 . . 1 2 4 1 . 5 Treads 31 | . . . . 4 1 . 1 4 . . 6 2 . . 1 2 4 1 . 5 Leg 3 | . . . . . . . . . . . 3 . . . . . . . . . Wheel 20 | 2 1 . 6 . 2 . . . . 4 5 . . . . . . . . . Hover . | . . . . . . . . . . . . . . . . . . . . . Flight . | . . . . . . . . . . . . . . . . . . . . . Utility 80 | 1 4 . 3 5 3 1 1 7 . 7 10 2 . 3 8 6 10 5 1 3 Device 47 | . . . . 3 2 . . 4 . 5 8 1 . 2 6 2 7 4 1 2 Storage 7 | 1 3 . . . . . 1 1 . . . . . . . . 1 . . . Processor 2 | . . . . . 1 . . . . . . . . . . . 1 . . . Hackware 4 | . . . . . . . . . . 2 . . . . . 1 1 . . . Protection 20 | . 1 . 3 2 . 1 . 2 . . 2 1 . 1 2 3 . 1 . 1 Artifact . | . . . . . . . . . . . . . . . . . . . . . Weapon 126 | 2 2 1 16 6 1 4 4 7 . 19 22 2 1 1 8 12 4 6 . 8 Energy Gun 80 | . . . 14 5 1 2 2 5 . 12 15 2 1 1 4 9 2 2 . 3 Energy Cannon 10 | . . . 1 . . . . . . 3 1 . . . 1 1 . 2 . 1 Ballistic Gun 5 | 2 1 . . . . . . . . . . . . . 2 . . . . . Ballistic Cannon 2 | . 1 1 . . . . . . . . . . . . . . . . . . Launcher 16 | . . . . 1 . 1 . 2 . 1 1 . . . . 2 2 2 . 4 Special Weapon . | . . . . . . . . . . . . . . . . . . . . . Impact Weapon 1 | . . . . . . . 1 . . . . . . . . . . . . . Slashing Weapon 12 | . . . 1 . . 1 1 . . 3 5 . . . 1 . . . . . Piercing Weapon . | . . . . . . . . . . . . . . . . . . . . . Special Melee Weapon . | . . . . . . . . . . . . . . . . . . . . . Unidentified Prototypes 20 | . . . 4 . . . . 2 . 4 2 3 . 1 2 1 . . . 1 Corrupted Parts 6 | . . . 2 1 . . . 1 . . . . . 1 . . . . . 1 System Corruption 11 | . . . 3 2 . . . 1 . . . . . 4 . . . . . 1 Parts Lost 44 | . . . 2 . . . . 1 . . 16 . . 6 3 2 . 3 . 11 Power 3 | . . . 1 . . . . . . . 1 . . . . . . . . 1 Propulsion 9 | . . . 1 . . . . 1 . . 5 . . . . 1 . . . 1 Utility 17 | . . . . . . . . . . . 5 . . 3 1 1 . 3 . 4 Weapon 15 | . . . . . . . . . . . 5 . . 3 2 . . . . 5 Highest Loss Streak 10 | . . . 1 . . . . 1 . . 10 . . 6 1 2 . 1 . 10 To Critical Strikes 2 | . . . . . . . . . . . . . . . . 1 . 1 . . Average Slot Usage (%) 94 | . 99 100 99 97 100 100 100 99 100 97 95 88 86 82 87 88 93 93 94 93 Engine 3 | . 14 14 11 . . . 1 7 7 1 5 . . . . 3 . . . . Core 3 | . . . . 9 7 7 5 . . 4 . . . . . 3 10 11 11 8 Reactor 1 | . . . . . . . . . . . . 5 6 6 10 3 . . . 2 Treads 10 | . . . . 15 17 7 7 10 23 7 11 13 13 13 11 5 15 16 17 16 Wheel 7 | . 28 28 22 9 5 15 15 11 . 15 6 1 . . . . . . . . Device 14 | . . . . 8 15 15 15 15 15 18 17 19 20 18 22 10 15 16 17 19 Storage 6 | . 15 14 11 9 7 7 7 7 7 6 6 6 6 6 5 . 3 5 5 4 Processor 4 | . . . . . 7 7 7 7 7 6 6 6 6 6 5 . 4 5 5 4 Hackware 1 | . . . . . . . . . . 3 1 . . . . 3 5 5 5 2 Protection 7 | . 12 14 10 8 7 7 7 6 7 4 6 6 6 6 5 19 9 5 5 5 Energy Gun 21 | . . . 42 35 30 20 24 28 30 24 20 26 26 23 12 15 16 16 17 16 Energy Cannon 1 | . . . . . . . . . . . 1 . . . 2 2 5 4 5 2 Ballistic Gun 1 | . 25 14 . . . . . . . . . . . . 1 . . . . . Slashing Weapon 1 | . . . . . . 3 5 . . 1 3 . . . 4 . . . . . Naked Turns 17 | . . . . . . . . . . . . . . . . 11 . . . 6 Heaviest Build 125 | 13 55 57 67 71 67 72 111 115 70 80 91 99 98 98 107 107 96 93 91 125 Greatest Support 160 | 26 26 20 24 66 66 32 32 74 71 71 68 160 160 160 160 160 132 132 132 132 Greatest Overweight (x) 24 | . 2 2 3 2 4 2 3 3 . 7 24 5 . . . 2 . . . 1 Average Overweight (x) 1 | . 1 2 2 1 1 2 2 2 . 1 4 . . . . . . . . . Largest Inventory Capacity 25 | 8 20 20 20 20 20 20 25 25 20 20 20 20 20 20 20 20 20 20 20 20 Average Capacity 18 | 6 14 20 20 20 20 20 20 24 20 20 20 20 20 20 20 6 14 20 20 19 Most Carried 25 | 8 20 20 20 20 20 20 21 25 20 20 20 20 20 20 19 20 16 16 16 20 Average Carried 16 | 2 12 19 19 19 18 19 19 21 19 19 18 19 20 19 15 5 10 14 14 17 Final Capacity 25 | 8 20 20 20 20 20 20 25 20 20 20 20 20 20 20 20 5 20 20 20 5 Final Carried 21 | 8 20 20 20 20 20 20 21 20 20 20 20 20 20 18 19 5 16 13 16 5 Class Distribution -------------------- 30% | Scavenger-Skirmisher 21% | Scavenger-Tank 18% | Skirmisher 16% | Tank 5% | Mutant Dominant Class ---------------- Mutant | -10/Materials Mutant | -10/Mines Tank | -9/Materials Tank | -8/Materials Skirmisher | -7/Factory Skirmisher | -7/Waste Skirmisher | -7/Factory Skirmisher | -7/Lower Caves Skirmisher | -7/Lower Caves Scavenger-Skirmisher | -6/Factory Scavenger-Tank | -6/Extension Scavenger-Tank | -6/Cetus Scavenger-Tank | -6/Archives Scavenger-Tank | -6/Hub_04(d) Scavenger-Skirmisher | -5/Factory Tank | -5/Waste Scavenger-Skirmisher | -5/Factory Scavenger-Skirmisher | -5/Upper Caves Scavenger-Skirmisher | -5/Upper Caves Scavenger-Skirmisher | -5/Warlord Resources | -11 -10 -10 -9 -8 -7 -7 -7 -7 -7 -6 -6 -6 -6 -6 -5 -5 -5 -5 -5 -5 ----------- Run | Yrd Mat Min Mat Mat Fac Was Fac Low Low Fac Ext Cet Arc Hub Fac Was Fac Upp Upp War Matter Collected 4442 | 208 343 90 475 184 100 102 72 327 . 328 627 103 . 25 214 267 266 428 23 260 Remotely . | . . . . . . . . . . . . . . . . . . . . . Salvage Created 10070 | 111 327 83 1322 565 347 316 85 623 74 961 1464 . 32 144 1491 . 783 690 . 652 Parts 412 | 7 20 5 72 36 25 1 3 17 5 28 53 . . 9 64 . 30 18 . 19 Haulers Intercepted 15 | . . . 6 2 . . 1 1 . 2 . . . . 2 . 1 . . . Recyclers Shooed 9 | . 1 . . . 1 . . . . 2 4 . . . . . 1 . . . Parts Field Recycled . | . . . . . . . . . . . . . . . . . . . . . Retrieved Matter . | . . . . . . . . . . . . . . . . . . . . . Parts Self-Destructed 29 | . . . . . . . . 8 6 . . . . . . . . 15 . . Prevented 11 | . . . . . . . . 8 . . . . . . . . . 3 . . Kills | -11 -10 -10 -9 -8 -7 -7 -7 -7 -7 -6 -6 -6 -6 -6 -5 -5 -5 -5 -5 -5 ------- Run | Yrd Mat Min Mat Mat Fac Was Fac Low Low Fac Ext Cet Arc Hub Fac Was Fac Upp Upp War Combat Hostiles Destroyed 154 | . 8 2 19 9 7 1 . 11 3 8 20 . . 1 21 . 15 18 . 11 Melee 1 | . . . . . . . . . . . 1 . . . . . . . . . Guns 87 | . 6 1 12 4 4 . . 6 1 5 11 . . 1 16 . 9 5 . 6 Cannons 16 | . 2 1 . . . . . . . 1 3 . . . 3 . . 4 . 2 AOE 41 | . . . 6 4 3 1 . 5 2 . 4 . . . . . 6 9 . 1 Classes Destroyed 18 | 2 3 . 5 2 1 1 . 1 . 1 . . . . . . 1 . . 1 Worker 9 | . 1 . . 1 . . . . . 4 . . . 2 . . 1 . . . Builder 6 | . . . 2 1 2 . . . . . 1 . . . . . . . . . Tunneler 2 | 1 . . . . . . . . . . . . . . . . 1 . . . Hauler 15 | . . . 6 2 . . 1 1 . 2 . . . . 2 . 1 . . . Recycler 8 | 1 1 . 1 . . . . . . 2 2 . . . . . 1 . . . Operator 4 | . . . . 2 . . 1 . . . 1 . . . . . . . . . Watcher 10 | . . . 4 1 . . . . . . 2 . . 2 1 . . . . . Swarmer 27 | . 3 . 4 3 3 . . . 3 . . . . . . . 10 1 . . Grunt 61 | . 5 2 9 2 3 . . 7 . 3 14 . . . 5 . 2 7 . 2 Brawler 8 | . . . . . 1 . . 1 . . . . . . . . . 5 . 1 Duelist 3 | . . . 2 . . . . . . . . . . . . . . 1 . . Sentry 22 | . . . 4 3 . . . . . 2 6 . . 1 3 . 1 2 . . Specialist 1 | . . . . . . . . . . . . . . . . . . . . 1 Hunter 8 | . . . . 1 . . . 1 . . . . . . 5 . . . . 1 Programmer 21 | . . . . . . . . . . 3 . . . . 8 . 2 2 . 6 Compactor 1 | . . . . . . 1 . . . . . . . . . . . . . . Thief 2 | . . . . . . . . 2 . . . . . . . . . . . . Surgeon 2 | . . . . . . . . . . . . . . . . . 1 1 . . Wasp 1 | . . . . . . . . . . . . . . . . . 1 . . . Thug 3 | . . . . . . 3 . . . . . . . . . . . . . . Butcher 1 | . . . . . . 1 . . . . . . . . . . . . . . Best Kill Streak 8 | 1 3 2 8 4 5 1 1 5 3 5 7 . . 5 4 . 5 7 . 6 Combat Bots Only 7 | . 3 2 6 3 4 1 . 5 3 3 6 . . 1 4 . 5 7 . 6 Max Kills in Single Turn 5 | 1 2 1 4 4 3 3 1 2 2 2 3 . . 4 1 . 5 2 . 1 Gunslinging . | . . . . . . . . . . . . . . . . . . . . . Exploded 4 | . . . 3 3 2 1 . 2 2 . 3 . . . . . 4 2 . 1 Melee 1 | . . . . . . . . . . . 1 . . . . . . . . . Uniques/NPCs Destroyed . | . . . . . . . . . . . . . . . . . . . . . Combat | -11 -10 -10 -9 -8 -7 -7 -7 -7 -7 -6 -6 -6 -6 -6 -5 -5 -5 -5 -5 -5 -------- Run | Yrd Mat Min Mat Mat Fac Was Fac Low Low Fac Ext Cet Arc Hub Fac Was Fac Upp Upp War Hostile Shots Fired 1008 | . 35 6 41 18 22 . . 38 2 50 344 16 6 52 105 6 31 46 . 190 Missed 344 | . 12 2 11 5 8 . . 9 . 22 135 5 3 16 26 . 10 20 . 60 Damage Taken 11229 | . 274 45 431 183 243 15 43 486 27 327 2116 278 38 1147 1421 300 400 943 . 2512 Core 1663 | . 10 12 88 . 32 . . 81 . 42 318 37 . 43 54 61 30 309 . 546 Absorbed by Shields 885 | . . . . . . . . . . . 606 84 18 57 . . . . . 120 Reduced by Siege Mode 42 | . . . . . . . . . . . . . . . 42 . . . . . Ignored by Resistances 86 | . . . . . . . . 16 . 23 . . . . 27 . . . . 20 Regen/Repaired (Parts) 1495 | . . . 129 100 . 56 . . . . . . . . 466 174 202 48 . 320 Core Remaining (%) 83 | 100 . 91 78 100 . . . . 83 . . . . 48 . . . . . . Volleys Fired 379 | 5 40 6 37 17 7 9 3 18 2 28 72 3 4 4 48 2 22 28 . 24 Largest 4 | 2 2 2 4 4 4 1 3 4 4 4 4 4 4 4 3 4 4 4 . 4 Hottest 334 | 40 55 55 180 180 180 39 135 180 180 261 324 312 312 312 255 294 328 328 . 334 Shots Fired 1116 | 8 80 12 146 62 28 9 9 50 8 111 191 14 16 18 136 9 60 73 1 75 Gun 969 | 8 69 6 146 61 28 . 9 45 8 107 156 14 16 18 118 7 49 43 1 60 Cannon 107 | . 11 6 . . . . . . . 4 30 . . . 18 2 8 17 . 11 Launcher 40 | . . . . 1 . 9 . 5 . . 5 . . . . . 3 13 . 4 Special . | . . . . . . . . . . . . . . . . . . . . . Kinetic 106 | 8 80 12 . . . . . . . . . . . . 4 2 . . . . Thermal 669 | . . . . . . . . . . 107 186 14 16 18 132 7 57 60 1 71 Explosive 40 | . . . . 1 . 9 . 5 . . 5 . . . . . 3 13 . 4 Electromagnetic 301 | . . . 146 61 28 . 9 45 8 4 . . . . . . . . . . Robot Hit Streak 34 | 5 9 5 12 7 7 2 8 9 9 17 15 5 4 9 34 4 7 11 . 8 Robot Miss Streak 5 | . 3 1 5 4 3 1 2 3 3 3 3 1 2 4 4 3 4 2 1 3 Penetration Max . | . . . . . . . . . . . . . . . . . . . . . Secondary Targets 10 | . . . 1 . 1 . . . . 1 4 . . . . . 2 . . 1 Max Gunslinging Chain 1 | . . . 1 . 1 . . . . 1 1 . . . . . 1 . . 1 Shots Hit Robots 727 | 5 49 8 94 47 23 1 7 38 4 78 127 9 10 9 98 7 32 38 . 43 Core Hits 445 | 3 15 5 52 29 20 12 5 38 4 33 67 4 4 5 47 3 27 42 . 30 Critical Kills 1 | . . . . . . . . . . . . . . . . . 1 . . . Critical Parts Destroyed . | . . . . . . . . . . . . . . . . . . . . . Critical Strikes 29 | . . . . . . . . . . 9 5 1 3 1 2 . 4 1 . 3 Burn 28 | . . . . . . . . . . 9 5 1 3 1 2 . 3 1 . 3 Meltdown 1 | . . . . . . . . . . . . . . . . . 1 . . . Melee Attacks 40 | . . . . . . 3 2 . . 7 25 . . . 3 . . . . . Impact . | . . . . . . . . . . . . . . . . . . . . . Slashing 40 | . . . . . . 3 2 . . 7 25 . . . 3 . . . . . Piercing . | . . . . . . . . . . . . . . . . . . . . . Sneak Attacks 3 | . . . . . . . . . . 1 2 . . . . . . . . . Combat Hostiles . | . . . . . . . . . . . . . . . . . . . . . Follow-up Attacks . | . . . . . . . . . . . . . . . . . . . . . Damage Inflicted 25632 | 49 620 116 2019 1184 685 1059 173 1372 194 1892 3808 263 217 715 3375 241 1810 3158 . 2682 Guns 13896 | 49 483 45 1507 746 437 . 124 609 48 1692 2296 263 217 198 2482 117 914 658 . 1011 Cannons 2673 | . 137 71 . . . . . . . 108 566 . . . 893 124 91 367 . 316 Explosions 8671 | . . . 512 438 248 1059 49 763 146 . 646 . . 517 . . 805 2133 . 1355 Melee 392 | . . . . . . . . . . 92 300 . . . . . . . . . Ramming . | . . . . . . . . . . . . . . . . . . . . . Kinetic 872 | 49 620 116 . . . . . . . . . . . . 47 40 . . . . Thermal 13523 | . . . 512 119 248 . 49 235 146 1788 2862 263 217 198 3328 201 1005 1025 . 1327 Explosive 6845 | . . . . 319 . 1059 . 528 . . 646 . . . . . 805 2133 . 1355 Electromagnetic 4000 | . . . 1507 746 437 . 124 609 48 12 . . . 517 . . . . . . Impact . | . . . . . . . . . . . . . . . . . . . . . Slashing 392 | . . . . . . . . . . 92 300 . . . . . . . . . Piercing . | . . . . . . . . . . . . . . . . . . . . . Highest Corruption 23 | . . . 4 2 . . . 1 . 1 7 7 7 23 3 3 7 7 7 7 Average Corruption 4 | . . . 1 2 . . . 1 . 1 5 7 7 8 1 3 3 7 7 2 Corruption Purged 2 | . . . . . . . . 1 . 1 . . . . . . . . . . Corruption Blocked 16 | . . . . . . . . . . . . . . . . . . . . 16 Effects 238 | . . . 5 . . . . . . 6 68 13 2 10 24 20 19 41 16 14 Message Errors 56 | . . . 2 . . . . . . 2 14 2 . 5 6 3 4 15 2 1 Matter Fused 59 | . . . 1 . . . . . . 1 20 3 1 . 5 6 7 7 5 3 Heat Flow Errors 28 | . . . 1 . . . . . . 1 8 2 . 1 1 4 2 3 2 3 Energy Discharges 21 | . . . . . . . . . . 1 8 . . . 2 2 . 5 3 . Parts Rejected 4 | . . . . . . . . . . . . . 1 . 2 . . 1 . . Parts Fused 4 | . . . . . . . . . . . 2 . . . 1 . . . . 1 Data Loss (minor) 29 | . . . 1 . . . . . . . 8 2 . 2 3 1 3 4 2 3 Data Loss (major) 14 | . . . . . . . . . . . 3 2 . 1 2 2 1 3 . . Misfires 13 | . . . . . . . . . . . 1 2 . 1 1 1 1 3 1 2 Alerts 7 | . . . . . . . . . . 1 3 . . . 1 1 . . 1 . Weapon Failures 3 | . . . . . . . . . . . 1 . . . . . 1 . . 1 Overload Shots . | . . . . . . . . . . . . . . . . . . . . . Overflow Damage 357 | . . . 27 . . . . . 6 52 79 . . 33 5 . 1 76 . 78 Projectiles 100 | . . . . . . . . . . . 30 . . . 5 . . . . 65 Explosions 159 | . . . 27 . . . . . 6 . 3 . . 33 . . 1 76 . 13 Melee 98 | . . . . . . . . . . 52 46 . . . . . . . . . Knockbacks 4 | . 3 1 . . . . . . . . . . . . . . . . . . Impact . | . . . . . . . . . . . . . . . . . . . . . Kinetic 4 | . 3 1 . . . . . . . . . . . . . . . . . . Secondary . | . . . . . . . . . . . . . . . . . . . . . Self-Inflicted Damage 673 | . . . 51 22 25 15 43 84 . . 55 . . 106 . . 48 217 . 7 Shots 19 | . . . 2 2 1 1 1 2 . . 3 . . 1 . . 1 4 . 1 Rammed . | . . . . . . . . . . . . . . . . . . . . . Targets Rammed . | . . . . . . . . . . . . . . . . . . . . . Kicked . | . . . . . . . . . . . . . . . . . . . . . Crushed . | . . . . . . . . . . . . . . . . . . . . . Highest Temperature 626 | . 42 42 364 102 75 . 8 74 15 372 403 221 276 281 285 319 405 626 137 373 Average Temperature 109 | . 10 18 126 35 33 . 6 23 10 119 156 85 118 124 76 88 119 153 58 121 Received Heat Transfer 2317 | . 114 24 114 63 63 . . 117 . 78 771 26 18 5 126 . 30 117 . 651 Effects 17 | . . . 1 . . . . . . 1 4 . . . . . 2 8 . 1 Shutdowns 3 | . . . . . . . . . . . . . . . . . 1 2 . . Energy Bleed 5 | . . . . . . . . . . 1 1 . . . . . 1 1 . 1 Interference 6 | . . . . . . . . . . . 3 . . . . . . 3 . . Damage (minor) 2 | . . . 1 . . . . . . . . . . . . . . 1 . . Damage (core) 1 | . . . . . . . . . . . . . . . . . . 1 . . Siege Activations 4 | . . . . . . . . . . . . . . . 4 . . . . . Total Turns 64 | . . . . . . . . . . . . . . . 64 . . . . . Longest Duration 29 | . . . . . . . . . . . . . . . 29 . . . . . Robots Corrupted 5 | . . . 3 2 . . . . . . . . . . . . . . . . Combat Hostiles 2 | . . . 1 1 . . . . . . . . . . . . . . . . Parts Fried 25 | . . . 10 8 . . 1 2 . . . . . 4 . . . . . . Impact Corruptions . | . . . . . . . . . . . . . . . . . . . . . Robots Melted 8 | . . . . . . . . . . 2 1 . . . 2 . 1 . . 2 Combat Hostiles 7 | . . . . . . . . . . 2 1 . . . 2 . . . . 2 Parts Melted 62 | . . . . . . . . . . 10 18 . 2 1 13 . 5 4 . 9 Heat Transferred 20809 | . . . 650 50 300 . 50 250 150 3626 5113 518 592 407 4143 261 1480 1369 . 1850 Parts Sabotaged . | . . . . . . . . . . . . . . . . . . . . . Parts Stolen 2 | . . . . . . . . 2 . . . . . . . . . . . . Parts Stripped . | . . . . . . . . . . . . . . . . . . . . . Power Chain Reactions 20 | . . . 10 3 2 . 1 3 1 . . . . . . . . . . . Alert | -11 -10 -10 -9 -8 -7 -7 -7 -7 -7 -6 -6 -6 -6 -6 -5 -5 -5 -5 -5 -5 ------- Run | Yrd Mat Min Mat Mat Fac Was Fac Low Low Fac Ext Cet Arc Hub Fac Was Fac Upp Upp War Peak Influence 794 | 10 238 77 381 349 175 95 22 . . 174 252 285 155 320 342 102 794 . . . Initial 127 | . 6 27 29 115 55 61 . . . 44 63 64 90 53 127 81 . . . . Average 140 | 5 94 42 215 159 59 30 4 . . 71 145 182 123 113 207 18 302 . . . Maximum Alert Level 3 | . 1 . 1 1 . . . . . . 1 1 . 1 1 . 3 . . . Low Security (%) 71 | 100 84 100 34 77 100 100 100 . . 100 75 66 100 74 38 100 35 . . . Level 1 26 | . 15 . 65 22 . . . . . . 24 33 . 25 61 . 36 . . . Level 2 1 | . . . . . . . . . . . . . . . . . 18 . . . Level 3 . | . . . . . . . . . . . . . . . . . 9 . . . Level 4 . | . . . . . . . . . . . . . . . . . . . . . Level 5 . | . . . . . . . . . . . . . . . . . . . . . High Security . | . . . . . . . . . . . . . . . . . . . . . Max Security . | . . . . . . . . . . . . . . . . . . . . . Squads Dispatched 28 | . 2 . 2 1 . . . . . 5 4 1 . 1 10 . 2 . . . Investigation 8 | . 2 . 2 . . . . . . . 3 1 . . . . . . . . Extermination 8 | . . . . . . . . . . 3 . . . . 4 . 1 . . . Reinforcement 7 | . . . . 1 . . . . . 2 1 . . . 3 . . . . . Assault 1 | . . . . . . . . . . . . . . . . . 1 . . . Garrison 4 | . . . . . . . . . . . . . . 1 3 . . . . . Intercept . | . . . . . . . . . . . . . . . . . . . . . Searches Triggered . | . . . . . . . . . . . . . . . . . . . . . Construction Impeded 1 | . . . . . . . . . . . 1 . . . . . . . . . Haulers Reinforced 3 | . . . . . . . . . . 1 . . . . 2 . . . . . Active Scanning Responses . | . . . . . . . . . . . . . . . . . . . . . Cargo Convoy Interrupts . | . . . . . . . . . . . . . . . . . . . . . Stealth | -11 -10 -10 -9 -8 -7 -7 -7 -7 -7 -6 -6 -6 -6 -6 -5 -5 -5 -5 -5 -5 --------- Run | Yrd Mat Min Mat Mat Fac Was Fac Low Low Fac Ext Cet Arc Hub Fac Was Fac Upp Upp War Distress Signals 11 | . . . 2 1 . . . . . . 3 2 . 1 2 . . . . . Communications Jammed . | . . . . . . . . . . . . . . . . . . . . . Distress Signals . | . . . . . . . . . . . . . . . . . . . . . Times Spotted 300 | . 10 2 25 12 7 2 . 13 1 12 48 13 9 8 31 6 32 20 . 49 Peak Tracking Total 21 | . 3 2 5 3 4 1 . 5 1 2 10 5 7 4 4 6 5 7 . 21 Tactical Retreats 10 | . . . 1 . . . . 1 . 1 3 . 1 . . . . 2 . 1 Traps | -11 -10 -10 -9 -8 -7 -7 -7 -7 -7 -6 -6 -6 -6 -6 -5 -5 -5 -5 -5 -5 ------- Run | Yrd Mat Min Mat Mat Fac Was Fac Low Low Fac Ext Cet Arc Hub Fac Was Fac Upp Upp War Traps Triggered 11 | . 2 . . . 1 . . . . . 5 . . . 1 . 1 . . 1 Indirectly . | . . . . . . . . . . . . . . . . . . . . . Trap Hack Attempts . | . . . . . . . . . . . . . . . . . . . . . Triggered . | . . . . . . . . . . . . . . . . . . . . . Disarmed . | . . . . . . . . . . . . . . . . . . . . . Reprogrammed . | . . . . . . . . . . . . . . . . . . . . . Reused . | . . . . . . . . . . . . . . . . . . . . . Traps Extracted . | . . . . . . . . . . . . . . . . . . . . . Installed . | . . . . . . . . . . . . . . . . . . . . . Triggered 26 | . . . . . . . . . . . . . . . . . . 2 . 24 Machines | -11 -10 -10 -9 -8 -7 -7 -7 -7 -7 -6 -6 -6 -6 -6 -5 -5 -5 -5 -5 -5 ---------- Run | Yrd Mat Min Mat Mat Fac Was Fac Low Low Fac Ext Cet Arc Hub Fac Was Fac Upp Upp War Machines Disabled 28 | . . . 2 5 . . . . . . . 1 2 8 3 . 5 . . 2 Max in Single Turn 8 | . . . 1 4 . . . . . . . . 1 8 2 . 3 . . 2 Garrison Access 1 | . . . . . . . . . . . . . . . . . 1 . . . Network Hub 1 | . . . . . . . . . . . . . . 1 . . . . . . Machines Repaired . | . . . . . . . . . . . . . . . . . . . . . Machines Dismantled . | . . . . . . . . . . . . . . . . . . . . . Machines Sabotaged . | . . . . . . . . . . . . . . . . . . . . . Overloaded Fab Kills . | . . . . . . . . . . . . . . . . . . . . . Hacking | -11 -10 -10 -9 -8 -7 -7 -7 -7 -7 -6 -6 -6 -6 -6 -5 -5 -5 -5 -5 -5 --------- Run | Yrd Mat Min Mat Mat Fac Was Fac Low Low Fac Ext Cet Arc Hub Fac Was Fac Upp Upp War Machines Accessed 40 | . 3 . 6 5 1 . 2 . . 2 9 1 1 . 5 . 3 . . 2 Terminals 30 | . 3 . 5 4 . . 1 . . 2 9 1 . . 3 . 2 . . . Fabricators 2 | . . . . . . . 1 . . . . . . . . . 1 . . . Repair Stations 3 | . . . 1 1 . . . . . . . . . . 1 . . . . . Recycling Units 2 | . . . . . 1 . . . . . . . . . 1 . . . . . Scanalyzers . | . . . . . . . . . . . . . . . . . . . . . Garrison Access . | . . . . . . . . . . . . . . . . . . . . . Total Hacks 135 | . 12 . 15 21 1 . 3 . . 4 23 1 25 . 16 . 8 . . 6 Successful 75 | . 5 . 6 13 . . 1 . . 1 9 1 25 . 5 . 3 . . 6 Failed 60 | . 7 . 9 8 1 . 2 . . 3 14 . . . 11 . 5 . . . Catastrophic 14 | . . . 3 1 1 . . . . 3 3 . . . 2 . 1 . . . Database Lockouts . | . . . . . . . . . . . . . . . . . . . . . Manual 63 | . 10 . 11 11 . . 1 . . 4 8 3 . . 10 . 5 . . . Terminals 79 | . 12 . 11 12 . . 1 . . 4 23 1 . . 10 . 5 . . . Fabricators 5 | . . . . . . . 2 . . . . . . . . . 3 . . . Repair Stations 16 | . . . 4 9 . . . . . . . . . . 3 . . . . . Recycling Units 4 | . . . . . 1 . . . . . . . . . 3 . . . . . Scanalyzers . | . . . . . . . . . . . . . . . . . . . . . Garrison Access . | . . . . . . . . . . . . . . . . . . . . . Terminal Hacks 55 | . 5 . 1 4 . . . . . 1 9 1 25 . 2 . 1 . . 6 Record 34 | . 2 . . . . . . . . . 1 1 25 . . . . . . 5 Part Schematic 2 | . 1 . 1 . . . . . . . . . . . . . . . . . Robot Analysis 1 | . . . . 1 . . . . . . . . . . . . . . . . Open Door 6 | . . . . . . . . . . . 5 . . . . . . . . 1 Level Access Points 1 | . . . . 1 . . . . . . . . . . . . . . . . Branch Access Points 4 | . 1 . . . . . . . . 1 . . . . 1 . 1 . . . Alert Level 4 | . . . . 1 . . . . . . 2 . . . 1 . . . . . Unreport Threat 2 | . . . . 1 . . . . . . 1 . . . . . . . . . Locate Traps 1 | . 1 . . . . . . . . . . . . . . . . . . . Fabricator Hacks 2 | . . . . . . . 1 . . . . . . . . . 1 . . . Load Schematic 1 | . . . . . . . . . . . . . . . . . 1 . . . Build 1 | . . . . . . . 1 . . . . . . . . . . . . . Repair Station Hacks 14 | . . . 4 8 . . . . . . . . . . 2 . . . . . Scan Component 7 | . . . 2 4 . . . . . . . . . . 1 . . . . . Repair 7 | . . . 2 4 . . . . . . . . . . 1 . . . . . Recycling Unit Hacks . | . . . . . . . . . . . . . . . . . . . . . Scanalyzer . | . . . . . . . . . . . . . . . . . . . . . Garrison Access Hacks . | . . . . . . . . . . . . . . . . . . . . . Unauthorized Hacks 4 | . . . 1 1 . . . . . . . . . . 1 . 1 . . . Terminals 4 | . . . 1 1 . . . . . . . . . . 1 . 1 . . . Botnet 4 | . . . 1 1 . . . . . . . . . . 1 . 1 . . . Fabricators . | . . . . . . . . . . . . . . . . . . . . . Repair Stations . | . . . . . . . . . . . . . . . . . . . . . Recycling Units . | . . . . . . . . . . . . . . . . . . . . . Scanalyzers . | . . . . . . . . . . . . . . . . . . . . . Garrison Access . | . . . . . . . . . . . . . . . . . . . . . Data Cores Recovered 4 | . . . . 2 . . 1 . . . 1 . . . . . . . . . Used 2 | . . . . 1 . . . . . . 1 . . . . . . . . . Hacking Detections 31 | . 2 . 5 3 1 . 1 . . 2 9 1 . . 4 . 3 . . . Full Trace Events 9 | . 2 . 3 . . . . . . . 3 1 . . . . . . . . Feedback Events 1 | . . . 1 . . . . . . . . . . . . . . . . . Corruption 1 | . . . 1 . . . . . . . . . . . . . . . . . Feedback Blocked . | . . . . . . . . . . . . . . . . . . . . . Robot Schematics Acquired . | . . . . . . . . . . . . . . . . . . . . . Robots Built . | . . . . . . . . . . . . . . . . . . . . . Authchips . | . . . . . . . . . . . . . . . . . . . . . Time . | . . . . . . . . . . . . . . . . . . . . . Total Robot Build Rating . | . . . . . . . . . . . . . . . . . . . . . Part Schematics Acquired 2 | . 1 . 1 . . . . . . . . . . . . . . . . . Parts Built 2 | . . . . . . . 2 . . . . . . . . . . . . . Authchips . | . . . . . . . . . . . . . . . . . . . . . Time 106 | . . . . . . . 106 . . . . . . . . . . . . . Total Part Build Rating 12 | . . . . . . . 12 . . . . . . . . . . . . . Parts Repaired 6 | . . . 2 3 . . . . . . . . . . 1 . . . . . Time 323 | . . . 64 151 . . . . . . . . . . 108 . . . . . Parts Recycled . | . . . . . . . . . . . . . . . . . . . . . Recycled Matter . | . . . . . . . . . . . . . . . . . . . . . Retrieved Matter . | . . . . . . . . . . . . . . . . . . . . . Retrieved Components . | . . . . . . . . . . . . . . . . . . . . . Parts Scanalyzed . | . . . . . . . . . . . . . . . . . . . . . Part Schematics Acquired . | . . . . . . . . . . . . . . . . . . . . . Parts Damaged . | . . . . . . . . . . . . . . . . . . . . . Bothacking | -11 -10 -10 -9 -8 -7 -7 -7 -7 -7 -6 -6 -6 -6 -6 -5 -5 -5 -5 -5 -5 ------------ Run | Yrd Mat Min Mat Mat Fac Was Fac Low Low Fac Ext Cet Arc Hub Fac Was Fac Upp Upp War Used RIF Installer . | . . . . . . . . . . . . . . . . . . . . . Robots Hacked . | . . . . . . . . . . . . . . . . . . . . . Non-combat . | . . . . . . . . . . . . . . . . . . . . . Combat . | . . . . . . . . . . . . . . . . . . . . . Robot Hacks Applied . | . . . . . . . . . . . . . . . . . . . . . Relay Couplers Released 1 | . . . . . . . . . . . . . . . . . 1 . . . Machine Destruction 1 | . . . . . . . . . . . . . . . . . 1 . . . Fabnet Peak Effective % . | . . . . . . . . . . . . . . . . . . . . . Robots Rewired 12 | . . . . . . . . . . . 10 . . . . . . 2 . . Allies Hacked 1 | . . . . . . . . . . . . . . . . . . 1 . . Hacks Repelled . | . . . . . . . . . . . . . . . . . . . . . Allies | -11 -10 -10 -9 -8 -7 -7 -7 -7 -7 -6 -6 -6 -6 -6 -5 -5 -5 -5 -5 -5 -------- Run | Yrd Mat Min Mat Mat Fac Was Fac Low Low Fac Ext Cet Arc Hub Fac Was Fac Upp Upp War Total Allies 60 | . . 3 . . . 18 . . . . 18 . . . . 19 . 2 . . Largest Group 18 | . . 3 3 . . 18 . . . . 11 11 . . . 18 8 2 . . Highest-Rated Group 664 | . . 40 40 . . 444 . . . . 462 462 . . . 664 267 59 . . Highest-Rated Ally 159 | . . 16 16 . . 35 . . . . 159 143 . . . 50 46 30 . . Total Orders 7 | . . . . . . . . . . . 7 . . . . . . . . . STAY 5 | . . . . . . . . . . . 5 . . . . . . . . . FOLLOW 2 | . . . . . . . . . . . 2 . . . . . . . . . Ally Attacks 621 | . . . 20 . . 241 . . . . 102 93 . . . 71 92 2 . . Total Damage 17944 | . . . 236 . . 6031 . . . . 2332 1758 . . . 5679 1856 52 . . Kills 74 | . . . 3 . . 10 . . . . 21 12 . . . 13 15 . . . Allies Corrupted 1 | . . . . . . . . . . . . . . . . . 1 . . . Allies Melted 2 | . . . . . . . . . . . . . . . . . . . . 2 Intel | -11 -10 -10 -9 -8 -7 -7 -7 -7 -7 -6 -6 -6 -6 -6 -5 -5 -5 -5 -5 -5 ------- Run | Yrd Mat Min Mat Mat Fac Was Fac Low Low Fac Ext Cet Arc Hub Fac Was Fac Upp Upp War Robot Analysis Total 1 | . . . . 1 . . . . . . . . . . . . . . . . Derelict Logs Recovered 4 | . . 1 . . . . . 1 2 . . . . . . . . . . . Drone Launches . | . . . . . . . . . . . . . . . . . . . . . Drone Recoveries . | . . . . . . . . . . . . . . . . . . . . . Exploration | -11 -10 -10 -9 -8 -7 -7 -7 -7 -7 -6 -6 -6 -6 -6 -5 -5 -5 -5 -5 -5 ------------- Run | Yrd Mat Min Mat Mat Fac Was Fac Low Low Fac Ext Cet Arc Hub Fac Was Fac Upp Upp War Turns Passed 19519 | 87 644 201 1422 1058 536 385 483 1495 127 1552 2610 384 98 275 2076 1250 1136 1382 599 1719 Spaces Moved 10807 | 68 451 160 845 557 241 249 240 855 72 991 1149 209 52 151 1047 668 630 797 377 998 Core 45 | 8 . . . . . . . . . . 5 . . . . 21 . . . 11 Treads 5679 | . . . . 247 139 . . 147 72 220 15 172 52 151 1047 626 630 797 377 987 Legs 10 | . . . . . . . . . . . 10 . . . . . . . . . Wheels 5052 | 60 451 160 845 310 102 249 240 708 . 771 1119 37 . . . . . . . . Hover 21 | . . . . . . . . . . . . . . . . 21 . . . . Flight . | . . . . . . . . . . . . . . . . . . . . . Fastest Speed 50 | 50 90 110 110 120 130 130 130 145 160 95 95 160 160 160 160 50 145 157 158 50 Average Speed 149 | 85 106 110 121 137 193 130 130 155 160 128 173 163 160 160 160 160 156 157 158 158 Slowest Speed 1250 | 100 120 110 130 240 240 130 145 320 160 240 1250 240 160 160 160 225 158 158 158 237 Overloaded Moves . | . . . . . . . . . . . . . . . . . . . . . Propulsion Burnouts . | . . . . . . . . . . . . . . . . . . . . . Robots Hopped . | . . . . . . . . . . . . . . . . . . . . . Cave-ins Triggered 1 | . . . . . . . . . . . 1 . . . . . . . . . Exploration Rate (%) 46 | 4 56 45 65 28 6 79 8 82 10 22 64 66 68 17 19 96 22 81 67 72 Regions Visited 20 Branch Regions 10 Pre-discovered Areas 1 | . . . . . . . . . 1 . . . . . . . . . . . Known Exits Taken 13 | . 1 . . 1 . . 1 1 1 1 1 1 1 1 . . 1 1 1 . Unknown Exits Taken 3 | 1 . 1 1 . . . . . . . . . . . . . . . . . Scrap Searched 8 | . . . . . . . . 2 1 . . . . . . . . 2 3 . Spaces Dug 30 | . . . . . . . 2 . . 6 19 . . . 3 . . . . . Terrain Destroyed 778 | . . . 27 59 5 59 5 75 4 6 54 . . 159 9 . 49 200 . 67 Melee 20 | . . . . . . . 2 . . 6 9 . . . 3 . . . . . Projectile 54 | . . . . . . . . . . . 18 . . . 6 . 6 16 . 8 AOE 704 | . . . 27 59 5 59 3 75 4 . 27 . . 159 . . 43 184 . 59 Terrain Rammed . | . . . . . . . . . . . . . . . . . . . . . Walls Destroyed . | . . . . . . . . . . . . . . . . . . . . . Machines Disabled . | . . . . . . . . . . . . . . . . . . . . . Actions | -11 -10 -10 -9 -8 -7 -7 -7 -7 -7 -6 -6 -6 -6 -6 -5 -5 -5 -5 -5 -5 --------- Run | Yrd Mat Min Mat Mat Fac Was Fac Low Low Fac Ext Cet Arc Hub Fac Was Fac Upp Upp War Total 13304 | 86 540 173 1161 808 295 301 400 984 79 1185 1584 248 56 174 1327 838 732 868 380 1085 Wait 1294 | . 23 5 177 196 29 17 140 77 4 88 97 10 . 16 200 130 36 20 . 29 Move 10789 | 67 450 159 844 556 241 248 239 854 71 990 1148 208 51 150 1047 667 629 796 376 998 Hop . | . . . . . . . . . . . . . . . . . . . . . Pick Up 141 | 8 13 1 27 12 4 8 4 8 1 13 8 5 . . 7 3 12 1 2 4 Fast Attach 126 | 6 4 . 14 5 2 1 1 5 . 10 27 7 1 . 8 14 12 3 1 5 Attach 39 | . . . 1 5 2 . . 1 . 1 8 1 . 2 7 4 . 3 . 4 Detach 19 | . . . . 1 2 . . . . 4 1 . . . 2 3 1 . 1 4 Swap 118 | . 3 1 15 6 3 5 6 12 . 21 14 . . 2 3 5 7 6 . 9 Drop 191 | . 7 1 46 10 5 10 5 9 1 23 24 14 . . 2 10 13 3 . 8 Fire 379 | 5 40 6 37 17 7 9 3 18 2 28 72 3 4 4 48 2 22 28 . 24 Melee 40 | . . . . . . 3 2 . . 7 25 . . . 3 . . . . . Ram . | . . . . . . . . . . . . . . . . . . . . . Kick . | . . . . . . . . . . . . . . . . . . . . . Crush . | . . . . . . . . . . . . . . . . . . . . . Escape Stasis 24 | . . . . . . . . . . . 24 . . . . . . . . . Rewire 144 | . . . . . . . . . . . 136 . . . . . . 8 . . Trap . | . . . . . . . . . . . . . . . . . . . . . Miscellaneous . | . . . . . . . . . . . . . . . . . . . . . Route ------- -11/Scrapyard -10/Materials (discovered 3 exits: *Mat / *Min x2) -10/Mines -9/Materials (discovered 2 exits: *Mat / [*Min]) -8/Materials (discovered 3 exits: *Fac x3) -7/Factory -7/Waste -7/Factory -7/Lower Caves -7/Lower Caves -6/Factory (discovered 4 exits: *Low x2 / *Ext x2) -6/Extension (discovered 2 exits: *Fac / *Cet) -6/Cetus -6/Archives -6/Hub_04(d) -5/Factory (discovered 2 exits: Upp x2) -5/Waste -5/Factory (discovered 2 exits: *Upp x2) -5/Upper Caves -5/Upper Caves -5/Warlord History --------- Turn | Location | Event 4 | -11/Scrapyard | Discovered new exit (range 15) 88 | -11/Scrapyard | Entered Materials 192 | -10/Materials | Identified exit to Mines 313 | -10/Materials | Build established: Mutant 324 | -10/Materials | Discovered new exit (range 16) 688 | -10/Materials | Derelicts attacked the area 732 | -10/Materials | Entered Mines 810 | -10/Mines | Found a hidden stash of uninstalled traps 842 | -10/Mines | Discovered new exit (range 6) 920 | -10/Mines | Assisted by bots powering up and referring to "LRC-V3" 933 | -10/Mines | Entered Materials 933 | -9/Materials | Accompanied by 3 allies 933 | -9/Materials | Evolved 2 slots: Weapon x2 1087 | -9/Materials | Repaired Med. Armor Plating 1217 | -9/Materials | Repaired Hpw. Tractor Beam? 1370 | -9/Materials | Build established: Tank 1502 | -9/Materials | Discovered new exit (range 7) 2251 | -9/Materials | Discovered new exit (range 13) 2355 | -9/Materials | Entered another Materials area 2355 | -8/Materials | Evolved 2 slots: Propulsion x1, Utility x1 2546 | -8/Materials | Identified exit to Factory 2755 | -8/Materials | Repaired Corrupted Lgt. Treads 2788 | -8/Materials | Repaired Med. Armor Plating 2821 | -8/Materials | Repaired Cooling System 3413 | -8/Materials | Entered Factory 3413 | -7/Factory | Evolved 2 slots: Utility x2 3414 | -7/Factory | Identified exit to Storage 3703 | -7/Factory | Build established: Skirmisher 3949 | -7/Factory | Sucked down chute 3949 | -7/Factory | Entered Waste 3961 | -7/Waste | Spotted C-40 Crusher 3961 | -7/Waste | Spotted C-40 Crusher 3981 | -7/Waste | Warlord forces began an assault 3995 | -7/Waste | Allies destroyed C-40 Crusher 4002 | -7/Waste | Allies destroyed C-40 Crusher 4003 | -7/Waste | Spotted C-40 Crusher 4004 | -7/Waste | Allies destroyed C-40 Crusher 4061 | -7/Waste | Lost 6 allies 4134 | -7/Waste | Spotted C-40 Crusher 4169 | -7/Waste | Destroyed C-40 Crusher 4195 | -7/Waste | Lost 5 allies 4229 | -7/Waste | Spotted C-40 Crusher 4304 | -7/Waste | Discovered new exit (range 15) 4332 | -7/Waste | Identified exit to Factory 4334 | -7/Waste | Entered Factory 4610 | -7/Factory | Fabricated Imp. Dynamic Insulation System (x2) 4790 | -7/Factory | Discovered new exit (range 6) 4799 | -7/Factory | Identified exit to Lower Caves 4817 | -7/Factory | Entered Lower Caves 5033 | -7/Lower Caves | Spotted B-75 Beast 5264 | -7/Lower Caves | Encountered a Warlord checkpoint 5323 | -7/Lower Caves | Learned Factory terminal intel 5858 | -7/Lower Caves | Discovered new exit (range 14) 5875 | -7/Lower Caves | Identified exit to Lower Caves 6312 | -7/Lower Caves | Entered another Lower Caves area 6373 | -7/Lower Caves | Learned location of Extension (-6) 6373 | -7/Lower Caves | Discovered new exit (range 9) 6384 | -7/Lower Caves | Identified exit to Factory 6403 | -7/Lower Caves | Learned Factory non-interactive machine intel 6439 | -7/Lower Caves | Entered Factory 6439 | -6/Factory | Evolved 2 slots: Propulsion x1, Utility x1 6440 | -6/Factory | Loaded intel: 213 non-interactive machine locations 6441 | -6/Factory | Loaded intel: 27 terminal locations 7211 | -6/Factory | Discovered new exit (range 7) 7217 | -6/Factory | Identified exit to Lower Caves 7313 | -6/Factory | Build established: Scavenger-Skirmisher 7379 | -6/Factory | Found Prototype Launcher 7379 | -6/Factory | Identified Scatter Rocket Array 7715 | -6/Factory | Identified exit to Extension 7991 | -6/Factory | Entered Extension 8038 | -6/Extension | Rescued a captive Derelict 8039 | -6/Extension | Rescued a captive Derelict 8198 | -6/Extension | Lost 10 parts (3n3u4w) 8280 | -6/Extension | Lost 3 parts (1p1u1w) 8509 | -6/Extension | Rescued a captive Derelict 8510 | -6/Extension | Rescued a captive Derelict 8591 | -6/Extension | Disrupted transfer network 8722 | -6/Extension | Spotted B-75 Beast 8794 | -6/Extension | Crushed by falling debris 8806 | -6/Extension | Build established: Scavenger-Tank 8825 | -6/Extension | Lost 3 parts (2n1u) 8846 | -6/Extension | Rescued a captive Derelict 8846 | -6/Extension | Rescued a captive Derelict 8900 | -6/Extension | Rescued A7 9078 | -6/Extension | Rescued a captive Derelict 9373 | -6/Extension | Discovered new exit (range 10) 9374 | -6/Extension | Discovered new exit (range 6) 9383 | -6/Extension | Identified exit to Cetus 9680 | -6/Extension | Spotted B-75 Beast 9975 | -6/Extension | Identified exit to Factory 10495 | -6/Extension | Build established: Commander-Tank 10601 | -6/Extension | Entered Cetus 10601 | -6/Cetus | Accompanied by 11 allies (A7) 10606 | -6/Cetus | Acquired a Cetus Manufacturing Module code from A7 10617 | -6/Cetus | Spotted Cetus Guard 10617 | -6/Cetus | Spotted Cetus Guard 10636 | -6/Cetus | Allies destroyed Cetus Guard 10636 | -6/Cetus | Extracted ID and sensor layout for unrecognized location from A7's data core 10641 | -6/Cetus | Allies destroyed Cetus Guard 10665 | -6/Cetus | Lost 4 allies 10690 | -6/Cetus | Cetus Manufacturing Module disabled 10834 | -6/Cetus | Failed to start Cetus Manufacturing Module 10863 | -6/Cetus | Discovered new exit (range 15) 10886 | -6/Cetus | Identified exit to Archives 10930 | -6/Cetus | Spotted Cetus Guard 10930 | -6/Cetus | Spotted Cetus Guard 10936 | -6/Cetus | Spotted Cetus Guard 10940 | -6/Cetus | Build established: Scavenger-Tank 10940 | -6/Cetus | Spotted Cetus Guard 10947 | -6/Cetus | Allies destroyed Cetus Guard 10959 | -6/Cetus | Allies destroyed Cetus Guard 10985 | -6/Cetus | Entered Archives 11003 | -6/Archives | Lost 6 allies 11020 | -6/Archives | Met Zhirov 11026 | -6/Archives | Reinforcements dispatched to Archives 11055 | -6/Archives | Read partially decrypted archive contents 11060 | -6/Archives | Discovered new exit (range 15) 11071 | -6/Archives | Reinforcements dispatched to Archives 11081 | -6/Archives | Identified exit to Hub_04(d) 11083 | -6/Archives | Entered Hub_04(d) 11176 | -6/Hub_04(d) | Discovered exit to Factory (range 12) 11271 | -6/Hub_04(d) | Garrison activated, responded to threat 11289 | -6/Hub_04(d) | Network Hub disabled 11299 | -6/Hub_04(d) | Spotted Lightning 11302 | -6/Hub_04(d) | Spotted Lightning 11309 | -6/Hub_04(d) | Spotted Lightning 11325 | -6/Hub_04(d) | System corruption reached 10% 11354 | -6/Hub_04(d) | Core integrity fell below 50% 11358 | -6/Hub_04(d) | Entered Factory 11358 | -5/Factory | Evolved 2 slots: Power x1, Utility x1 11369 | -5/Factory | Lost 6 parts (3u3w) 11711 | -5/Factory | Repaired Centrium Medium Armor Plating 12447 | -5/Factory | Garrison activated, responded to threat 12705 | -5/Factory | Build established: Scavenger-Skirmisher 13178 | -5/Factory | Identified exit to Upper Caves 13434 | -5/Factory | Sucked down chute 13434 | -5/Factory | Entered Waste 13435 | -5/Waste | Met a frightened Derelict 13438 | -5/Waste | Found Prototype Launcher 13439 | -5/Waste | Identified Adv. Micro-nuke Launcher 13465 | -5/Waste | Spotted C-40 Crusher 13477 | -5/Waste | Spotted C-40 Crusher 13488 | -5/Waste | Spotted C-40 Crusher 13497 | -5/Waste | Spotted C-40 Crusher 13536 | -5/Waste | Spotted C-40 Crusher 13581 | -5/Waste | Spotted C-40 Crusher 13588 | -5/Waste | Crushed by Compactor (0 parts destroyed, 2 dropped) 13591 | -5/Waste | Discovered new exit (range 14) 13591 | -5/Waste | Crushed by Compactor (0 parts destroyed, 1 dropped) 13594 | -5/Waste | Crushed by Compactor (1 part destroyed, 1 dropped) 13603 | -5/Waste | Crushed by Compactor (0 parts destroyed, 1 dropped) 13605 | -5/Waste | Released all parts (8) 13608 | -5/Waste | Warlord forces began an assault 13616 | -5/Waste | Allies destroyed C-40 Crusher 13618 | -5/Waste | Allies destroyed C-40 Crusher 13666 | -5/Waste | Lost 10 allies 13975 | -5/Waste | Build established: Derelict-Tank 14417 | -5/Waste | Build established: Tank 14684 | -5/Waste | Entered Factory 14684 | -5/Factory | Accompanied by 8 allies 15385 | -5/Factory | Build established: Scavenger-Skirmisher 15820 | -5/Factory | Entered Upper Caves 15820 | -5/Upper Caves | Accompanied by 1 ally 15846 | -5/Upper Caves | Attracted the attention of an 0b10 outpost 15905 | -5/Upper Caves | Destroyed 7 combat bots 16844 | -5/Upper Caves | Attracted the attention of an 0b10 checkpoint 17166 | -5/Upper Caves | Discovered new exit (range 10) 17183 | -5/Upper Caves | Identified exit to Upper Caves 17202 | -5/Upper Caves | Entered another Upper Caves area 17788 | -5/Upper Caves | Discovered new exit (range 7) 17799 | -5/Upper Caves | Identified exit to Warlord 17801 | -5/Upper Caves | Entered Warlord 17890 | -5/Warlord | System corruption cleaned by Quarantine Array 18122 | -5/Warlord | Learned 4 Armory zone layouts 18122 | -5/Warlord | Learned 4 Research zone layouts 18122 | -5/Warlord | Learned 4 Research zone layouts 18122 | -5/Warlord | Learned 4 Testing zone layouts 18400 | -5/Warlord | Met Warlord 18425 | -5/Warlord | Warlord's base attacked by MAIN.C 18757 | -5/Warlord | Lost 16 allies 18769 | -5/Warlord | Core integrity fell below 50% 18775 | -5/Warlord | Warlord forces counterattacked 18835 | -5/Warlord | Lost 4 allies 18844 | -5/Warlord | Spotted B-86 Titan 18848 | -5/Warlord | Spotted Striker 18899 | -5/Warlord | Lost 4 allies 19012 | -5/Warlord | Build established: Scavenger-Tank 19089 | -5/Warlord | Found Prototype Energy Gun 19089 | -5/Warlord | Identified Vortex Shotgun 19100 | -5/Warlord | Warlord base infiltrated, sounded retreat 19103 | -5/Warlord | Met EX-DEC 19496 | -5/Warlord | Spotted B-75 Beast 19498 | -5/Warlord | Spotted Striker 19498 | -5/Warlord | Spotted B-86 Titan 19502 | -5/Warlord | Spotted Striker 19506 | -5/Warlord | Spotted Striker 19514 | -5/Warlord | Released all parts (6) 19519 | -5/Warlord | Core integrity fell below 20% 19520 | -5/Warlord | Destroyed by G-50 Soldier with Heavy Laser Last Messages --------------- 19506_ Hvy. Beamcaster destroyed. 19506_ Imp. Medium Armor Plating destroyed. 19508_ X-77 Beamer knocked back. 19509_ Critical hit (Burn: +37). 19510_ Relay Lab Terminal disabled. 19511_ Biometal Heavy Treads destroyed. 19511_ Lgt. Fission Core destroyed. 19513_ Nova Cannon destroyed. 19513_ Adv. Micro-nuke Launcher destroyed. 19513_ Beamcaster destroyed. 19514_ Released Arm. Medium Treads. 19514_ Released Rnf. Antimatter Reactor. 19514_ Released Adv. Cooling System. 19514_ Released Imp. Signal Interpreter. 19514_ Released Hcp. Storage Unit. 19514_ Released Adv. Cooling System. 19515_ ANNOUNCEMENT: MAIN.C reinforcements approaching through caves, arriving soon. 19515_ Acquired 15 matter. 19518_ Knocked back. Map ----- +----------------------------------------------------+ | """"// #?????????????????????????# #?????? | | """"""" #?????????????????????????# #?????? | | ########### #?????????????????????????# #?????# | | ###########++#?????????????????????????# #?????# | | #?????????????????????????# #?????# | | #??????????????????????#### ####### | | #??????????????????????# =[#!%! | | ##############??????????????????????# =%![]*= | | #??????###########?######??????###### !*[=![ | | ##?????# #?# ???#??# *!*%*%= | | #?????# #?# """ #??# = [*/=% | | #?????# #?# """ #??# *!%[=%= | | #?????# #?# """ #??# %![!=!! | | #?????#####+""##### """ #??# # ==!%[]= | | #????????## + """ #?## =[!= | | #????????# #### ### = #=*[ | | #????????## #??# # # % ### #"##### | | #????????## #### d ! % ###???# | | ######????#" ## ## ! * #?????# | | ####### d #?????# | | # # %%!%BB !% #?????# | | # !% =*[BB /|! ;####+#####??# | | # =%!%==K%%%[BB=%!=* ## #??? | | ; =%!!#KKb BB / =[##### #??? | | # !*=%=x !* #???# "" #??? | | "" + *[!!!i =%@ "#???# ""#??? | | "" # =!! g!![= ! " #???# """#??? | | # "" + #! gg ! ""#???# """#??? | | """ ##### gbg " X !!#???# ""#??? | | "" #???# g #"""!!#???# "" #??? | | "" #???# i x #######???# #??? | | #??### #????????#######+##??? | | ######## < ###??????????????# #???? | | # ??? # ???????????????# #???? | | # # ? ## # # ### #??????????????# #???? | | # # ## ### ###?? #??????????????# #???? | | # *" ## ## # ?????#??????????????# #???? | | # !="#+##### ?????????????######?# #???? | | # [%*%[ #??????????????#""""#?# #???? | | # |!! ##?????????????#""""#?# #???? | | # % #?????????????#"X "#?# #???? | | + +?????????????#"X "#?# ##### | | # #?????????????#"X "#?# # | | + # ""###"####### #??###?########## #### # "" | | ######## ## # #### ### ## ###+# ## # "" | | #??????# + + "" | | #??????# ################## ########## | | ???????# #????????????????#####????????# | | ???????# #?????????????????????????????? | | ???????#########??????????????????????????????#### | +----------------------------------------------------+ Best States ------------- Heat Dissipation 102 Coolant Potential 80 Energy Generation 43 Energy Capacity 500 Matter Stores 300 Matter Capacity 400 Sight Range 16 Robot Scan Range 16 Terrain Scan Density 10 Power Amplification 30 Additional Mass Support 12 Armor Coverage 755 Resistance: TH 20 Utility Shielding 66 Evasion (%) 50 Recoil Reduction 4 Energy Filtering 50 Particle Charging 15 Kinecelleration 40 Offensive Hacking 20 Item Schematics ----------------- Lrg. Storage Unit | -10/Materials | Hacked Cooling System | -9/Materials | Hacked Robot Schematics ------------------ None Fabricated ------------ Imp. Dynamic Insulation System | x2 | -7/Factory | Preloaded Alien Tech Used ----------------- None Achievements -------------- A New Friend A Powerful Ally? Below Collateral Damage Prison Break Project G-00 System Compromised Challenges ------------ None Game ------ Seed EfficiencyTerrainNanosword Manual? 0 Play Time 04:07:04 Cumulative 37.6 hours Start 2024.06.03 @ 00:52:14 End 2024.06.04 @ 21:34:58 Sessions 3 Manual Loads 0 Difficulty Rogue Special Mode None Game No. 16 Rogue 16 Adventurer 0 Explorer 0 Win Type - Total 1 Types 1/0/0/0/0/0/0/0/0 Lore% 23 Gallery% 33 Achievement% 30 Wizard Run 0 Options --------- Layout 0 ASCII 0 Keyboard 1 Movement Mouse Keybinds 0 Fullscreen 1 Font 18/SmallcapsGlow Map View 76x50 Zoom Use 0% Tactical HUD 1 Map Filters NONE Filters NONE Steam 1 RUN: 88f60403-4788-4223-82ef-a7779c48bd09